bitfinex-derivatives/quotes_BTCF0:USTF0_20240925
["timestamp","ask_amount","ask_price","bid_price","bid_amount"]
[1727228049672,0.004,64462.0,64459.0,0.3608]
[1727228049973,0.004,64462.0,64461.0,0.077562]
[1727228050376,0.00506946,64465.0,64463.0,0.077558]
[1727228050580,0.077554,64468.0,64464.0,0.077558]
[1727228050983,0.08267865,64468.0,64464.0,0.077558]
[1727228051173,0.08267865,64468.0,64461.0,0.0816]
[1727228051174,0.08267865,64468.0,64467.0,0.077555]
[1727228051379,0.08267865,64468.0,64467.0,0.1548551]
[1727228051574,0.08267865,64468.0,64467.0,0.077555]
[1727228051980,0.077555,64467.0,64466.0,0.0773001]
[1727228052283,0.077555,64467.0,64466.0,0.18890354]
[1727228052786,0.077555,64467.0,64463.0,0.001]
[1727228052787,0.077556,64466.0,64465.0,0.0773001]
[1727228052980,0.077556,64466.0,64465.0,0.1889021]
[1727228053182,0.077556,64466.0,64465.0,0.4227452]
[1727228053383,0.077556,64466.0,64465.0,0.1889021]
[1727228054388,0.097556,64466.0,64465.0,0.0793001]
[1727228054888,0.097556,64466.0,64465.0,0.002]
[1727228055476,0.02,64466.0,64465.0,0.002]
[1727228056686,0.02,64466.0,64465.0,0.079557]
[1727228058691,0.08081046,64469.0,64465.0,0.079557]
[1727228058881,0.15836246,64469.0,64468.0,0.06173031]
[1727228059773,0.08246246,64469.0,64468.0,0.06173031]
[1727228059978,0.09646246,64469.0,64468.0,0.06173031]
[1727228060578,0.08246246,64469.0,64468.0,0.06273031]
[1727228060888,0.09646246,64469.0,64468.0,0.06373031]
[1727228063479,0.09646246,64469.0,64468.0,0.002]
[1727228065388,0.01891046,64469.0,64468.0,0.002]
[1727228068180,0.09646246,64469.0,64468.0,0.002]
[1727228069389,0.01891046,64469.0,64468.0,0.002]
[1727228072691,0.09646246,64469.0,64468.0,0.002]
[1727228072889,0.37971046,64469.0,64452.0,0.40711502]
[1727228073187,0.37971046,64469.0,64457.0,0.30995105]
[1727228073188,0.14,64458.0,64457.0,0.30995105]
[1727228073589,0.14,64463.0,64458.0,0.077565]
[1727228073981,0.14,64463.0,64459.0,0.23238505]
[1727228074183,0.10120058,64463.0,64461.0,0.09281942]
[1727228074382,0.10120058,64463.0,64459.0,0.23238505]
[1727228074383,0.10120058,64463.0,64462.0,0.20431967]
[1727228074586,0.10120058,64463.0,64462.0,0.34524082]
[1727228074791,0.17875958,64463.0,64462.0,0.20442867]
[1727228075183,0.17975958,64463.0,64462.0,0.20442867]
[1727228075594,0.17975958,64463.0,64462.0,0.11150025]
[1727228076498,0.18175958,64463.0,64462.0,0.11150025]
[1727228076683,0.18175958,64463.0,64462.0,0.20443192]
[1727228077293,0.18075958,64463.0,64462.0,0.20443192]
[1727228077491,0.18275958,64463.0,64462.0,0.11250025]
[1727228077798,0.18275958,64463.0,64462.0,0.20543257]
[1727228078595,0.081559,64463.0,64462.0,0.20543257]
[1727228078794,0.081559,64463.0,64462.0,0.11250025]
[1727228078795,0.004,64463.0,64462.0,0.11250025]
[1727228079606,0.004,64463.0,64462.0,0.13674958]
[1727228080198,0.004,64463.0,64462.0,0.11250025]
[1727228080396,0.004,64463.0,64462.0,0.26928492]
[1727228080602,0.144,64463.0,64462.0,0.24503623]
[1727228080791,0.221559,64463.0,64462.0,0.24503623]
[1727228081189,0.582359,64463.0,64462.0,0.24503623]
[1727228081390,0.582359,64463.0,64462.0,0.001]
[1727228083496,0.442359,64463.0,64462.0,0.001]
[1727228083900,0.442359,64463.0,64462.0,0.02524933]
[1727228084794,0.3648,64463.0,64462.0,0.02524933]
[1727228084999,0.004,64463.0,64462.0,0.02524933]
[1727228085626,0.004,64463.0,64462.0,0.001]
[1727228085899,0.004,64463.0,64462.0,0.02524791]
[1727228086487,0.004,64463.0,64462.0,0.10280891]
[1727228086689,0.077549,64472.0,64462.0,1.51100339]
[1727228086893,0.077549,64472.0,64470.0,0.077551]
[1727228087091,0.077549,64472.0,64471.0,0.02424791]
[1727228088192,0.079549,64472.0,64471.0,0.02424791]
[1727228088900,0.079549,64472.0,64471.0,0.02524791]
[1727228089202,0.002,64472.0,64471.0,0.24279791]
[1727228089402,0.438343,64477.0,64473.0,0.077547]
[1727228089596,0.438343,64477.0,64474.0,0.22784507]
[1727228089800,0.438343,64477.0,64475.0,0.13504198]
[1727228089995,0.438343,64477.0,64476.0,0.13504198]
[1727228090392,0.3608,64477.0,64476.0,0.21258598]
[1727228090602,0.36593076,64477.0,64476.0,0.30538907]
[1727228090800,0.36593076,64477.0,64476.0,0.21258598]
[1727228091392,0.36593076,64477.0,64476.0,0.3063049]
[1727228091793,0.36593076,64477.0,64476.0,0.28205699]
[1727228092105,0.36593076,64477.0,64476.0,0.28186892]
[1727228093005,0.36593076,64477.0,64476.0,0.28286892]
[1727228093711,0.36593076,64477.0,64476.0,0.20532492]
[1727228094706,0.44347376,64477.0,64476.0,0.112606]
[1727228095908,0.44347376,64477.0,64476.0,0.18982676]
[1727228096315,0.60551965,64477.0,64476.0,0.002]
[1727228096499,0.48144512,64477.0,64476.0,0.002]
[1727228097110,0.36593076,64477.0,64476.0,0.002]
[1727228098709,0.44347376,64477.0,64476.0,0.02624504]
[1727228099211,0.48144397,64477.0,64476.0,0.02624504]
[1727228099401,0.48144397,64477.0,64476.0,0.002]
[1727228099602,0.6055185,64477.0,64476.0,0.002]
[1727228100206,0.48144397,64477.0,64476.0,0.002]
[1727228100527,0.48144397,64477.0,64459.0,0.36821676]
[1727228100528,0.077561,64462.0,64459.0,0.00741676]
[1727228100703,0.217561,64462.0,64459.0,0.0023268]
[1727228101013,0.217561,64462.0,64461.0,0.25805145]
[1727228101707,0.077561,64462.0,64461.0,0.25805145]
[1727228102525,0.3608,64463.0,64461.0,0.23380236]
[1727228102696,0.3608,64463.0,64462.0,0.02425047]
[1727228103108,0.36570846,64463.0,64462.0,0.02425047]
[1727228103315,0.36570846,64463.0,64462.0,0.25635791]
[1727228103908,0.36570846,64463.0,64462.0,0.25735791]
[1727228104312,0.00490846,64463.0,64462.0,0.25735791]
[1727228104513,0.077557,64465.0,64462.0,0.36851784]
[1727228104706,0.077557,64465.0,64463.0,0.22807469]
[1727228104908,0.077557,64465.0,64464.0,0.1354104]
[1727228105103,0.077557,64465.0,64464.0,0.36675606]
[1727228106112,0.077557,64465.0,64464.0,0.36675423]
[1727228106816,0.00494566,64466.0,64464.0,0.36675423]
[1727228107013,0.077555,64467.0,64465.0,0.49620857]
[1727228107217,0.077555,64467.0,64466.0,0.22803523]
[1727228107417,0.077555,64467.0,64466.0,0.36825074]
[1727228107812,0.077555,64467.0,64466.0,0.50000795]
[1727228108012,0.077555,64467.0,64466.0,0.36825074]
[1727228108216,0.077555,64467.0,64466.0,0.50003802]
[1727228108413,0.077555,64467.0,64466.0,0.46089281]
[1727228108715,0.077555,64467.0,64466.0,0.46189412]
[1727228109020,0.077555,64467.0,64466.0,0.46289412]
[1727228109217,0.077555,64467.0,64466.0,0.46243765]
[1727228109626,0.077555,64467.0,64466.0,0.46243634]
[1727228109817,0.0050385,64469.0,64466.0,0.46243634]
[1727228110008,0.0818,64471.0,64468.0,0.077553]
[1727228110009,0.077552,64470.0,64468.0,0.077553]
[1727228110211,0.077552,64470.0,64469.0,0.22759307]
[1727228110519,0.077552,64470.0,64469.0,0.36880363]
[1727228110709,0.00505494,64471.0,64469.0,0.36880363]
[1727228110909,0.077546,64474.0,64472.0,0.077548]
[1727228111114,0.077546,64474.0,64473.0,0.13494969]
[1727228111311,0.077546,64474.0,64473.0,0.02424623]
[1727228111616,0.077546,64474.0,64472.0,0.00112]
[1727228111617,0.155098,64472.0,64471.0,0.06177337]
[1727228111819,0.07755,64471.0,64470.0,0.06177337]
[1727228112009,0.21755,64471.0,64470.0,0.06177337]
[1727228112206,0.077551,64470.0,64469.0,0.06277337]
[1727228112416,0.077551,64470.0,64469.0,0.001]
[1727228112820,0.217551,64470.0,64469.0,0.001]
[1727228113524,0.217551,64470.0,64469.0,0.04734547]
[1727228114017,0.217551,64470.0,64469.0,0.04834547]
[1727228114322,0.217551,64470.0,64469.0,0.04734547]
[1727228115308,0.295102,64470.0,64469.0,0.04834547]
[1727228116522,0.295102,64470.0,64469.0,0.001]
[1727228116523,1.437973,64470.0,64469.0,0.001]
[1727228116710,1.282871,64470.0,64462.0,0.06177337]
[1727228116917,0.655918,64463.0,64462.0,0.06178452]
[1727228117116,0.077561,64462.0,64461.0,0.29524275]
[1727228117316,0.294061,64462.0,64461.0,0.29523445]
[1727228117522,0.077562,64461.0,64460.0,0.06177622]
[1727228117911,0.077562,64461.0,64460.0,0.29510101]
[1727228118117,0.077562,64461.0,64460.0,0.06177622]
[1727228118525,0.077562,64461.0,64460.0,0.29352382]
[1727228119240,0.077562,64461.0,64460.0,0.2317476]
[1727228119623,0.077567,64457.0,64456.0,0.23185598]
[1727228119818,0.578367,64457.0,64453.0,0.23185598]
[1727228120023,0.578367,64457.0,64452.0,0.14027622]
[1727228120227,0.077569,64456.0,64452.0,0.14027622]
[1727228120433,0.077569,64456.0,64454.0,0.23185598]
[1727228120623,0.077569,64456.0,64453.0,0.23185598]
[1727228120932,0.077569,64456.0,64452.0,0.14027622]
[1727228121118,0.077569,64456.0,64454.0,0.23391714]
[1727228121320,0.077569,64456.0,64453.0,0.23391714]
[1727228121522,0.077569,64456.0,64452.0,0.14427622]
[1727228121930,0.077569,64456.0,64453.0,0.23335617]
[1727228122123,0.077569,64456.0,64453.0,0.24335617]
[1727228122521,0.077563,64461.0,64455.0,0.077568]
[1727228122745,0.0036,64474.0,64470.0,0.077551]
[1727228122935,0.0008,64483.0,64473.0,0.3608]
[1727228123225,0.1442,64485.0,64476.0,0.06166336]
[1727228123428,0.1442,64485.0,64475.0,0.14]
[1727228123429,0.14,64485.0,64477.0,0.0859059]
[1727228123621,0.14507738,64485.0,64478.0,0.02424254]
[1727228123823,0.14507738,64485.0,64479.0,0.07754]
[1727228124021,0.14507738,64485.0,64479.0,0.23265913]
[1727228124229,0.14,64480.0,64479.0,0.23265913]
[1727228124435,0.14,64480.0,64478.0,0.23265913]
[1727228124648,0.14,64480.0,64476.0,0.29575421]
[1727228124833,0.14,64480.0,64478.0,0.002]
[1727228125128,0.14,64480.0,64479.0,0.23409085]
[1727228125519,0.14,64480.0,64479.0,0.23509085]
[1727228125723,0.141,64480.0,64479.0,0.23509085]
[1727228125929,0.141,64480.0,64479.0,0.001]
[1727228126344,0.141,64480.0,64479.0,0.23312327]
[1727228127323,0.14,64480.0,64479.0,0.23212327]
[1727228127524,0.141,64480.0,64479.0,0.23312327]
[1727228128124,0.141,64480.0,64479.0,0.23412327]
[1727228130631,0.001,64480.0,64479.0,0.23412327]
[1727228130936,0.001,64480.0,64479.0,0.31166327]
[1727228137536,0.001,64480.0,64479.0,0.67246327]
[1727228139543,0.001,64480.0,64479.0,0.67146327]
[1727228139733,0.00514643,64483.0,64479.0,0.59392327]
[1727228140042,0.077532,64486.0,64482.0,0.13904995]
[1727228140741,0.077527,64490.0,64482.0,0.20151295]
[1727228140942,0.077527,64490.0,64483.0,0.23179205]
[1727228141541,0.077527,64490.0,64484.0,0.0836]
[1727228142042,0.00514824,64491.0,64487.0,0.3608]
[1727228142238,0.0846,64493.0,64487.0,0.3608]
[1727228142436,0.077523,64494.0,64487.0,0.3608]
[1727228143044,0.14,64497.0,64490.0,0.077527]
[1727228144145,0.077526,64491.0,64490.0,0.077527]
[1727228144337,0.077526,64491.0,64490.0,0.078527]
[1727228145030,0.077526,64491.0,64490.0,0.001]
[1727228145541,0.217526,64491.0,64490.0,0.002]
[1727228145941,0.217526,64491.0,64487.0,0.3608]
[1727228146141,0.077527,64490.0,64485.0,0.3608]
[1727228146643,0.5018,64491.0,64486.0,0.23224911]
[1727228147043,0.5008,64491.0,64486.0,0.23224911]
[1727228147262,0.5008,64491.0,64487.0,0.002]
[1727228147263,0.5018,64491.0,64487.0,0.002]
[1727228147431,0.579326,64491.0,64487.0,0.002]
[1727228148448,0.217529,64488.0,64487.0,0.002]
[1727228149046,0.217529,64488.0,64487.0,0.001]
[1727228149553,0.22262632,64488.0,64487.0,0.001]
[1727228150241,0.22362632,64488.0,64487.0,0.002]
[1727228151242,0.22362632,64488.0,64487.0,0.06351295]
[1727228151448,0.22362632,64488.0,64487.0,0.002]
[1727228154052,0.22262632,64488.0,64487.0,0.001]
[1727228154253,0.22362632,64488.0,64487.0,0.002]
[1727228156551,0.30115532,64488.0,64487.0,0.002]
[1727228157744,0.76635532,64488.0,64487.0,0.002]
[1727228158451,0.76635532,64488.0,64474.0,0.081146]
[1727228158452,0.077532,64486.0,64474.0,0.0036]
[1727228158653,0.939145,64475.0,64467.0,0.0036]
[1727228158853,0.939145,64475.0,64464.0,0.06173213]
[1727228158854,0.3608,64468.0,64464.0,0.06173213]
[1727228159359,0.3608,64468.0,64464.0,0.23224031]
[1727228159360,0.14,64465.0,64464.0,0.23224031]
[1727228159551,0.14,64465.0,64461.0,0.06173213]
[1727228159754,0.14,64464.0,64463.0,0.23413465]
[1727228159955,0.14,64464.0,64462.0,0.23413465]
[1727228160169,0.14,64464.0,64461.0,0.06173213]
[1727228160346,0.217559,64464.0,64461.0,0.06173213]
[1727228160577,0.3608,64462.0,64457.0,0.06173213]
[1727228160843,0.14,64458.0,64453.0,0.06173213]
[1727228161051,0.077569,64455.0,64453.0,0.06173213]
[1727228161353,0.077569,64455.0,64452.0,0.1645]
[1727228161354,0.077569,64455.0,64454.0,0.2320284]
[1727228161552,0.3608,64456.0,64449.0,0.06173213]
[1727228161750,0.14,64451.0,64447.0,0.06173213]
[1727228161949,0.3608,64456.0,64447.0,0.06173213]
[1727228161950,0.578378,64448.0,64447.0,0.23267476]
[1727228162145,0.5008,64448.0,64442.0,0.00232751]
[1727228162364,0.14,64443.0,64442.0,0.00232751]
[1727228162663,0.3097,64447.0,64442.0,0.00232751]
[1727228162961,0.00492276,64447.0,64443.0,0.14]
[1727228163155,0.078578,64448.0,64443.0,0.14]
[1727228163461,0.078578,64448.0,64442.0,0.00232751]
[1727228163462,0.001,64448.0,64447.0,0.14]
[1727228164060,0.001,64448.0,64447.0,0.5008]
[1727228164667,0.001,64456.0,64447.0,0.5008]
[1727228164952,0.001,64456.0,64451.0,0.14]
[1727228165155,0.00504394,64456.0,64451.0,0.14]
[1727228165365,0.3608,64458.0,64451.0,0.14]
[1727228165749,0.077568,64456.0,64451.0,0.14]
[1727228166057,0.14,64457.0,64446.0,0.20173213]
[1727228166272,0.3608,64452.0,64447.0,0.004]
[1727228166651,0.001,64456.0,64447.0,0.004]
[1727228166857,0.14,64448.0,64447.0,0.004]
[1727228167453,0.14,64448.0,64442.0,0.00232751]
[1727228167454,0.217578,64448.0,64442.0,0.00232751]
[1727228167655,0.32198882,64446.0,64442.0,0.00232751]
[1727228167864,0.32198882,64446.0,64443.0,0.23176933]
[1727228168454,0.077579,64447.0,64443.0,0.23176933]
[1727228169793,0.07758,64446.0,64443.0,0.23176933]
[1727228169963,0.07758,64446.0,64443.0,0.23776933]
[1727228170262,0.07758,64446.0,64443.0,0.24776933]
[1727228170761,0.077582,64445.0,64443.0,0.23776933]
[1727228170965,0.077582,64445.0,64443.0,0.24776933]
[1727228171964,0.07858,64446.0,64443.0,0.24776933]
[1727228171965,0.077582,64444.0,64443.0,0.24776933]
[1727228172168,0.07858,64446.0,64443.0,0.24776933]
[1727228172169,0.077581,64445.0,64443.0,0.24776933]
[1727228172465,0.077582,64444.0,64443.0,0.24776933]
[1727228172861,0.077582,64444.0,64443.0,0.24176933]
[1727228173075,0.077582,64444.0,64443.0,0.24776933]
[1727228173468,0.077582,64444.0,64443.0,0.24176933]
[1727228173693,0.078582,64444.0,64443.0,0.23776933]
[1727228173871,0.079582,64444.0,64443.0,0.24776933]
[1727228174568,0.002,64444.0,64443.0,0.74856933]
[1727228174870,0.0036,64454.0,64443.0,1.81408933]
[1727228175070,0.077566,64458.0,64453.0,0.14]
[1727228175071,0.077567,64457.0,64453.0,0.14]
[1727228176274,0.001,64454.0,64453.0,0.14]
[1727228176873,0.077569,64456.0,64451.0,0.1601]
[1727228177368,0.077569,64456.0,64452.0,0.23282001]
[1727228177575,0.077572,64453.0,64452.0,0.23282001]
[1727228177876,0.077572,64453.0,64450.0,0.3608]
[1727228177877,0.077573,64452.0,64451.0,0.23293529]
[1727228178172,0.077573,64452.0,64450.0,0.3608]
[1727228178477,0.077573,64452.0,64451.0,0.23293529]
[1727228179674,0.078573,64452.0,64451.0,0.23293529]
[1727228181670,0.001,64452.0,64451.0,0.23293529]
[1727228182180,0.001,64452.0,64451.0,0.23593529]
[1727228182479,0.001,64452.0,64451.0,0.31350929]
[1727228185176,0.001,64452.0,64451.0,0.37524142]
[1727228185368,0.001,64452.0,64451.0,0.31350929]
[1727228186569,0.001,64452.0,64451.0,0.39059827]
[1727228186965,0.001,64452.0,64451.0,0.5010749]
[1727228187184,0.001,64452.0,64451.0,0.4239919]
[1727228187368,0.077569,64455.0,64451.0,0.4239919]
[1727228187568,0.077569,64455.0,64451.0,0.31293679]
[1727228187569,0.3608,64452.0,64451.0,0.31293679]
[1727228188184,0.438373,64452.0,64451.0,0.43915709]
[1727228188479,0.3608,64452.0,64451.0,0.34665031]
[1727228188674,0.3608,64452.0,64451.0,0.51674477]
[1727228188875,0.3608,64452.0,64451.0,0.42422431]
[1727228189271,0.3608,64452.0,64451.0,0.55624249]
[1727228190084,0.3608,64452.0,64451.0,0.42422431]
[1727228190265,0.3608,64452.0,64451.0,0.55624082]
[1727228190466,0.3608,64452.0,64451.0,0.55625622]
[1727228190673,0.00504887,64459.0,64451.0,1.08412153]
[1727228190884,0.077556,64467.0,64461.0,0.077562]
[1727228191182,0.077556,64467.0,64466.0,0.077556]
[1727228191372,0.077556,64467.0,64466.0,0.18828187]
[1727228191684,0.0872,64476.0,64466.0,0.18828187]
[1727228191685,0.077546,64475.0,64472.0,0.077548]
[1727228191977,0.077547,64473.0,64471.0,0.07704008]
[1727228192477,0.0836,64476.0,64470.0,0.07704008]
[1727228192478,0.077549,64472.0,64470.0,0.07704008]
[1727228192887,0.08873435,64476.0,64471.0,0.07704008]
[1727228193181,0.08873435,64476.0,64475.0,0.06160892]
[1727228193373,0.08873435,64476.0,64474.0,0.06160892]
[1727228194396,0.08873435,64476.0,64473.0,0.06160892]
[1727228196074,0.09473435,64476.0,64474.0,0.001]
[1727228196584,0.10673435,64476.0,64474.0,0.001]
[1727228196775,0.10673435,64476.0,64473.0,0.002]
[1727228197284,0.09473435,64476.0,64473.0,0.001]
[1727228197487,0.10673435,64476.0,64474.0,0.002]
[1727228198480,0.18427835,64476.0,64474.0,0.002]
[1727228198976,0.17827835,64476.0,64473.0,0.001]
[1727228199177,0.18627835,64476.0,64473.0,0.002]
[1727228199377,0.10267835,64476.0,64473.0,0.002]
[1727228199576,0.01313435,64476.0,64473.0,0.06260892]
[1727228199880,0.0036,64483.0,64478.0,0.077541]
[1727228200078,0.3608,64482.0,64479.0,0.07754]
[1727228201681,0.0036,64490.0,64481.0,0.14]
[1727228201889,0.0008,64496.0,64488.0,0.06148043]
[1727228201890,0.0036,64493.0,64488.0,0.06148043]
[1727228202073,0.14,64491.0,64487.0,0.14013043]
[1727228202381,0.14,64491.0,64489.0,0.23387793]
[1727228202584,0.14,64491.0,64488.0,0.23387793]
[1727228202786,0.14,64491.0,64490.0,0.23200384]
[1727228203182,0.141,64491.0,64489.0,0.23200384]
[1727228203381,0.141,64491.0,64488.0,0.001]
[1727228203782,0.141,64491.0,64487.0,0.07853]
[1727228203983,0.152,64491.0,64490.0,0.002]
[1727228205477,0.152,64491.0,64490.0,0.001]
[1727228205989,0.228526,64491.0,64488.0,0.23566495]
[1727228206387,0.228526,64491.0,64490.0,0.001]
[1727228206584,0.228526,64491.0,64490.0,0.002]
[1727228207194,0.228526,64491.0,64488.0,0.23566495]
[1727228207989,0.077528,64489.0,64488.0,0.23566495]
[1727228208191,0.438328,64489.0,64488.0,0.23566495]
[1727228208896,0.438328,64489.0,64488.0,0.23466495]
[1727228209090,0.438328,64489.0,64488.0,0.23366495]
[1727228209307,0.3608,64489.0,64488.0,0.23366495]
[1727228209602,0.01,64491.0,64488.0,0.23466495]
[1727228209779,0.00494379,64489.0,64488.0,0.23566495]
[1727228209987,0.01,64489.0,64488.0,0.23566495]
[1727228210987,0.087528,64489.0,64488.0,0.23566495]
[1727228213089,0.087528,64489.0,64488.0,0.23466495]
[1727228213287,0.087528,64489.0,64488.0,0.23566495]
[1727228216292,0.04874259,64489.0,64488.0,0.23566495]
[1727228217290,0.3657257,64491.0,64488.0,0.23566495]
[1727228217488,0.077527,64490.0,64488.0,0.23566495]
[1727228218187,0.077528,64489.0,64488.0,0.23566495]
[1727228220790,0.077528,64489.0,64488.0,0.29716547]
[1727228220988,0.077528,64489.0,64488.0,0.23566495]
[1727228221188,0.077528,64489.0,64488.0,0.29716547]
[1727228221394,0.077528,64489.0,64488.0,0.23566495]
[1727228224303,0.00492314,64489.0,64488.0,0.42123558]
[1727228224486,0.0790884,64503.0,64488.0,0.42123558]
[1727228224487,0.5036,64500.0,64488.0,0.48427988]
[1727228224688,0.077522,64495.0,64494.0,0.06153545]
[1727228226286,0.077522,64495.0,64494.0,0.001]
[1727228227194,0.50588498,64500.0,64498.0,0.077517]
[1727228227398,0.50588498,64500.0,64498.0,0.15444534]
[1727228227399,0.50508498,64500.0,64498.0,0.15444534]
[1727228227596,0.50508498,64500.0,64499.0,0.18536714]
[1727228227798,0.50508498,64500.0,64499.0,0.18538578]
[1727228228200,0.50508498,64500.0,64499.0,0.26290178]
[1727228228401,0.50508498,64500.0,64499.0,0.18597344]
[1727228228603,0.50508498,64500.0,64499.0,0.18539596]
[1727228228805,0.50508498,64500.0,64499.0,0.10845744]
[1727228229302,0.50508498,64500.0,64499.0,0.10945744]
[1727228230101,0.50508498,64500.0,64499.0,0.18697344]
[1727228230297,0.5,64500.0,64499.0,0.42104605]
[1727228230800,0.44571595,64500.0,64499.0,0.51349415]
[1727228231193,0.44571595,64500.0,64499.0,0.31258861]
[1727228231698,0.44571595,64500.0,64499.0,0.31158861]
[1727228231907,0.44571595,64500.0,64499.0,0.31258861]
[1727228239201,0.39918885,64500.0,64499.0,0.51148707]
[1727228239505,0.34490734,64500.0,64499.0,0.41920025]
[1727228239703,0.34490734,64500.0,64499.0,0.41919343]
[1727228240437,0.34490734,64500.0,64499.0,0.51129197]
[1727228240801,0.34490734,64500.0,64499.0,0.41919343]
[1727228241804,0.34490734,64500.0,64499.0,0.23507261]
[1727228242205,0.34490734,64500.0,64499.0,0.23407261]
[1727228242206,0.42242234,64500.0,64499.0,0.23407261]
[1727228242405,0.42242234,64500.0,64499.0,0.29550292]
[1727228242594,0.42242234,64500.0,64499.0,0.23307261]
[1727228242994,0.077518,64498.0,64495.0,0.23172369]
[1727228243196,0.077518,64498.0,64495.0,0.37172369]
[1727228243391,0.077519,64497.0,64495.0,0.14]
[1727228243608,0.077519,64497.0,64496.0,0.23172369]
[1727228244801,0.03512634,64500.0,64496.0,0.38600936]
[1727228245106,0.3608,64530.0,64518.0,0.077493]
[1727228245415,0.3608,64530.0,64518.0,0.55434779]
[1727228245613,0.3608,64530.0,64526.0,0.04600352]
[1727228245906,0.36587183,64530.0,64526.0,0.04600352]
[1727228246097,0.44335083,64530.0,64527.0,0.04600352]
[1727228246297,0.36587183,64530.0,64522.0,0.579409]
[1727228246505,0.36587183,64530.0,64523.0,0.23290615]
[1727228246811,0.36587183,64530.0,64522.0,0.579409]
[1727228246999,0.36587183,64530.0,64522.0,0.578289]
[1727228247351,0.217481,64528.0,64523.0,0.23304783]
[1727228247609,0.217481,64528.0,64522.0,0.001]
[1727228248004,0.217481,64528.0,64523.0,0.23136142]
[1727228248709,0.217481,64528.0,64526.0,0.001]
[1727228249114,0.217481,64528.0,64523.0,0.23336142]
[1727228249712,0.14,64528.0,64523.0,0.23336142]
[1727228249903,0.14,64528.0,64526.0,0.001]
[1727228250506,0.36587183,64530.0,64526.0,0.001]
[1727228250724,0.36587183,64530.0,64523.0,0.23336142]
[1727228252008,0.36587183,64530.0,64526.0,0.001]
[1727228252204,0.36587183,64530.0,64526.0,0.002]
[1727228252412,0.36587183,64530.0,64526.0,0.001]
[1727228252616,0.36587183,64530.0,64526.0,0.141]
[1727228253117,0.36587183,64530.0,64527.0,0.077482]
[1727228254401,0.36587183,64530.0,64526.0,0.002]
[1727228254402,0.50587183,64530.0,64526.0,0.002]
[1727228254714,0.36587183,64530.0,64526.0,0.002]
[1727228254917,0.36587183,64530.0,64526.0,0.001]
[1727228255108,0.36587183,64530.0,64527.0,0.001]
[1727228255310,0.07748,64529.0,64527.0,0.001]
[1727228255507,0.07748,64529.0,64526.0,0.001]
[1727228255807,0.07748,64529.0,64526.0,0.002]
[1727228256008,0.07748,64529.0,64526.0,0.001]
[1727228256212,0.07748,64529.0,64523.0,0.12349052]
[1727228256213,0.46492,64528.0,64523.0,0.04600352]
[1727228256417,0.5008,64524.0,64520.0,0.04597241]
[1727228256610,0.5008,64524.0,64516.0,0.06493803]
[1727228256611,0.07749,64521.0,64515.0,0.06133803]
[1727228256911,0.5008,64524.0,64515.0,0.14]
[1727228257120,0.3608,64524.0,64515.0,0.14]
[1727228257348,0.438287,64524.0,64518.0,0.077492]
[1727228257522,0.3608,64524.0,64523.0,0.14]
[1727228258714,0.3618,64524.0,64523.0,0.001]
[1727228259025,0.3618,64524.0,64521.0,0.077489]
[1727228259736,0.3618,64524.0,64516.0,0.3608]
[1727228259917,0.439287,64524.0,64516.0,0.3608]
[1727228260112,0.441287,64524.0,64517.0,0.23110842]
[1727228260725,0.441287,64524.0,64520.0,0.077491]
[1727228261228,0.441287,64524.0,64516.0,0.3608]
[1727228261423,0.10828256,64521.0,64519.0,0.077492]
[1727228261623,0.03236969,64520.0,64517.0,0.23132006]
[1727228261830,0.03236969,64519.0,64517.0,0.23132006]
[1727228262035,0.03236969,64518.0,64516.0,0.439415]
[1727228262220,0.0822,64518.0,64517.0,0.077495]
[1727228262424,0.11461225,64518.0,64517.0,0.31150582]
[1727228262919,0.11461225,64518.0,64517.0,0.23401082]
[1727228263530,0.19210525,64518.0,64517.0,0.23401082]
[1727228263728,0.19210525,64518.0,64516.0,0.003]
[1727228263927,0.03241225,64517.0,64516.0,0.003]
[1727228264130,0.03241225,64517.0,64513.0,0.077499]
[1727228264330,0.03241225,64516.0,64513.0,0.077499]
[1727228264546,0.03241225,64515.0,64514.0,0.23190758]
[1727228265034,0.03241225,64515.0,64514.0,0.30940558]
[1727228265928,0.03241225,64515.0,64514.0,0.31040558]
[1727228267430,0.03241225,64515.0,64514.0,0.31540558]
[1727228268934,0.12326859,64516.0,64514.0,0.31540558]
[1727228269331,0.12711257,64518.0,64515.0,0.06133803]
[1727228271932,0.12711257,64518.0,64517.0,0.3608]
[1727228271933,0.07284179,64518.0,64517.0,0.3608]
[1727228272627,0.077496,64516.0,64515.0,0.06544284]
[1727228272827,0.217496,64516.0,64515.0,0.004]
[1727228273030,0.077496,64516.0,64515.0,0.004]
[1727228273726,0.36720947,64518.0,64515.0,0.004]
[1727228273930,0.36720947,64518.0,64515.0,0.081496]
[1727228274129,0.36720947,64518.0,64517.0,0.079495]
[1727228274426,0.36920947,64518.0,64517.0,0.079495]
[1727228275935,0.36920947,64518.0,64517.0,0.077495]
[1727228276131,0.36920947,64518.0,64517.0,0.15416754]
[1727228276338,0.36920947,64518.0,64517.0,0.077495]
[1727228276339,0.48840871,64518.0,64517.0,0.077495]
[1727228276541,0.64316149,64518.0,64517.0,0.077495]
[1727228276866,0.64416149,64518.0,64517.0,0.077495]
[1727228277532,0.12860871,64518.0,64517.0,0.077495]
[1727228279238,0.12760871,64518.0,64517.0,0.077495]
[1727228279542,0.12760871,64518.0,64517.0,0.079495]
[1727228281550,0.28236149,64518.0,64517.0,0.079495]
[1727228283641,0.12760871,64518.0,64517.0,0.079495]
[1727228284555,0.00840947,64518.0,64517.0,0.18438182]
[1727228286845,0.00840947,64518.0,64517.0,0.10688682]
[1727228287157,0.077495,64517.0,64516.0,0.03508694]
[1727228287445,0.5429,64517.0,64510.0,0.0036]
[1727228287652,0.077505,64508.0,64507.0,0.0036]
[1727228287854,0.077508,64506.0,64505.0,0.3608]
[1727228288051,0.077508,64506.0,64505.0,0.46543604]
[1727228288247,0.07751,64505.0,64500.0,0.00592557]
[1727228288451,0.3608,64502.0,64500.0,0.00232557]